bitfinex/quotes_ETHUSD_20250526
["timestamp","ask_amount","ask_price","bid_price","bid_amount"]
[1748289875143,3.1257116,2537.2,2537.1,0.1]
[1748289878247,2.3648116,2537.2,2537.1,4.27608911]
[1748289878878,2.3648116,2537.2,2537.1,0.1]
[1748289879083,3.4143406,2537.2,2537.1,0.1]
[1748289882481,2.3648116,2537.2,2537.1,4.27608911]
[1748289882686,2.3648116,2537.2,2537.1,0.1]
[1748289886301,2.3648116,2537.2,2537.1,4.27608911]
[1748289890069,2.3648116,2537.2,2537.1,0.1]
[1748289890602,3.20298074,2537.2,2537.1,0.1]
[1748289890800,4.03289263,2537.2,2537.1,0.1]
[1748289891608,4.39966669,2537.2,2537.1,0.1]
[1748289891808,4.35039755,2537.2,2537.1,0.1]
[1748289895807,4.39967951,2537.2,2537.1,0.1]
[1748289895995,4.35039755,2537.2,2537.1,0.1]
[1748289896193,8.28939755,2537.2,2537.1,0.1]
[1748289898019,2.36552532,2536.5,2536.2,1.17955673]
[1748289898189,2.36552532,2536.5,2536.4,4.17608911]
[1748289900327,3.19472349,2537.2,2536.5,0.7533]
[1748289900499,2.36499802,2537.0,2536.9,4.17608911]
[1748289901404,2.36499802,2537.0,2536.9,5.00428911]
[1748289903003,2.36546422,2536.5,2536.4,0.7995]
[1748289903336,3.14995748,2536.4,2536.3,0.62424734]
[1748289903626,3.14995748,2536.4,2536.1,4.219]
[1748289903627,2.36574402,2536.2,2536.1,0.1]
[1748289903800,2.41503617,2536.2,2536.1,0.1]
[1748289904001,2.41503805,2536.2,2536.1,0.1]
[1748289904219,2.36574402,2536.2,2536.1,0.1]
[1748289906201,2.36574402,2536.2,2536.1,0.867]
[1748289914698,2.36574402,2536.2,2536.1,0.1]
[1748289916739,3.15024402,2536.2,2536.1,0.1]
[1748289916943,3.70183528,2536.2,2536.1,0.1]
[1748289917149,2.36574402,2536.2,2536.1,0.1]
[1748289917517,0.7845,2537.2,2536.2,8.0]
[1748289917744,2.36554297,2536.5,2536.4,9.30308549]
[1748289918160,2.36554297,2536.5,2536.4,0.7623]
[1748289919761,3.14937562,2537.2,2536.4,0.7623]
[1748289919762,2.36542234,2536.6,2536.4,0.7623]
[1748289919962,2.36542234,2536.6,2536.4,8.7623]
[1748289920963,2.36542234,2536.6,2536.4,9.23305131]
[1748289922271,2.36546422,2536.5,2536.4,9.23305131]
[1748289922925,2.36541586,2536.6,2536.4,9.23305131]
[1748289923269,2.36481239,2537.2,2536.6,4.49228494]
[1748289923472,0.7547,2537.7,2537.1,8.0]
[1748289923778,1.98110038,2537.8,2537.6,0.7573]
[1748289923921,2.36434566,2537.7,2537.6,0.7573]
[1748289924120,1.98110038,2537.8,2537.6,8.7573]
[1748289924981,4.34540587,2537.8,2537.6,8.7573]
[1748289926038,3.37348271,2538.5,2537.8,8.0]
[1748289926344,2.57528271,2538.5,2538.3,12.48041784]
[1748289926533,1.98260176,2538.8,2538.3,12.47978549]
[1748289926734,2.36361459,2538.5,2538.1,4.119]
[1748289926934,2.36361459,2538.5,2537.8,8.54078549]
[1748289926935,2.36392443,2538.2,2537.9,4.9443]
[1748289927130,2.36397305,2538.1,2538.0,8.0]
[1748289927526,2.36397305,2538.1,2537.9,4.9443]
[1748289927527,2.36406619,2538.0,2537.8,0.47075131]
[1748289927726,2.36415934,2537.9,2537.8,0.47075131]
[1748289928556,2.36415934,2537.9,2537.6,12.65978549]
[1748289928755,2.36415934,2537.9,2537.6,13.06107388]
[1748289929463,2.3643348,2537.8,2537.6,12.65978549]
[1748289929651,2.36434566,2537.7,2537.6,12.65978549]
[1748289930055,3.16141068,2539.0,2537.7,0.8253]
[1748289930363,3.16141068,2539.0,2537.8,11.939]
[1748289930364,2.36388037,2538.2,2537.8,11.939]
[1748289931034,2.36388037,2538.2,2537.9,4.118]
[1748289931233,2.36394499,2538.2,2537.9,4.118]
[1748289931567,2.36394499,2538.2,2538.0,8.54078549]
[1748289932273,2.36397305,2538.1,2538.0,8.54078549]
[1748289933269,2.36397305,2538.1,2537.6,4.33371473]
[1748289933270,2.36434566,2537.7,2537.6,8.39305865]
[1748289933568,0.802,2538.4,2537.6,16.93384414]
[1748289933569,3.16569872,2538.4,2537.6,16.93384414]
[1748289933770,2.36422272,2537.9,2537.6,16.93384414]
[1748289933971,0.7894,2538.6,2537.7,4.7097]
[1748289934138,2.36369366,2538.4,2538.3,8.54078549]
[1748289935572,0.7894,2538.8,2538.3,8.54078549]
[1748289935877,0.1,2538.9,2538.8,0.7564]
[1748289936177,2.46322816,2538.9,2538.8,12.6944]
[1748289936377,2.46322816,2538.9,2538.8,8.0]
[1748289938972,2.36332125,2538.8,2538.7,8.54078549]
[1748289939160,2.36360055,2538.5,2538.4,20.72578549]
[1748289939765,0.1,2538.9,2538.8,3.93886875]
[1748289939979,2.3628503,2539.4,2538.9,0.7564]
[1748289940162,2.3628503,2539.4,2539.3,8.54078549]
[1748289942192,2.36263865,2539.6,2539.4,0.7638]
[1748289942557,2.36266981,2539.5,2539.4,0.7638]
[1748289942855,2.36239073,2539.8,2539.4,0.7638]
[1748289943268,2.36263861,2539.6,2539.4,0.7638]
[1748289943469,2.36239073,2539.8,2539.4,0.7638]
[1748289943669,2.36261936,2539.6,2539.4,0.7638]
[1748289944495,2.36266981,2539.5,2539.4,0.7638]
[1748289945194,0.8983,2540.9,2539.6,0.8301]
[1748289945353,3.25970435,2540.9,2540.0,8.0]
[1748289945559,2.36192575,2540.3,2540.2,8.54078549]
[1748289947180,0.1,2540.9,2540.2,17.37088549]
[1748289947378,0.1,2540.9,2540.5,8.54078549]
[1748289947379,2.36164685,2540.6,2540.5,8.54078549]
[1748289947691,2.46142512,2540.9,2540.3,11.936]
[1748289947692,2.36183278,2540.4,2540.3,11.936]
[1748289948665,2.36192575,2540.3,2540.2,9.37088549]
[1748289948872,2.36192575,2540.3,2540.2,21.30688549]
[1748289949318,2.36188251,2540.4,2540.3,8.0]
[1748289949452,2.36188251,2540.4,2540.2,21.30688549]
[1748289949453,2.36173981,2540.5,2540.4,0.8301]
[1748289949773,2.36173981,2540.5,2540.4,8.8301]
[1748289950718,2.36173981,2540.5,2540.4,8.0]
[1748289950999,2.8340787,2540.5,2540.4,8.0]
[1748289952462,2.36173981,2540.5,2540.4,8.0]
[1748289953869,2.3616491,2540.6,2540.2,8.54078549]
[1748289954067,2.36220472,2540.0,2539.9,4.371]
[1748289954267,2.36220472,2540.0,2539.9,12.371]
[1748289955202,2.36220472,2540.0,2539.4,8.94085318]
[1748289955203,2.36260447,2539.6,2539.4,8.94085318]
[1748289955407,2.36260447,2539.6,2539.5,8.0]
[1748289955699,2.36260447,2539.6,2539.4,8.54078549]
[1748289955898,2.36260447,2539.6,2539.4,8.9288352]
[1748289956103,2.36260447,2539.6,2539.5,8.0]
[1748289958107,3.12472575,2540.3,2539.5,8.0]
[1748289958108,2.36253449,2539.7,2539.5,8.0]
[1748289958290,2.36232117,2539.9,2539.5,8.0]
[1748289958291,2.36243858,2539.8,2539.6,8.54078549]
[1748289959467,2.36248375,2539.7,2539.6,8.54078549]
[1748289959684,2.36248375,2539.7,2539.6,16.54078549]
[1748289961973,2.36248375,2539.7,2539.6,8.0]
[1748289963106,2.36248375,2539.7,2539.6,16.54078549]
[1748289964389,2.36239073,2539.8,2539.7,0.7739]
[1748289965506,2.36239073,2539.8,2539.7,8.7739]
[1748289965689,2.36239073,2539.8,2539.7,0.7739]
[1748289966092,2.36233736,2539.9,2539.7,0.7739]
[1748289966296,2.36170778,2540.6,2539.7,0.7739]
[1748289966593,2.36220697,2540.0,2539.9,8.54078549]
[1748289967675,2.36239073,2539.8,2539.7,8.0]
[1748289967878,2.36257678,2539.6,2539.5,0.47075131]
[1748289968311,2.36266981,2539.5,2539.4,9.20364971]
[1748289968512,2.36266981,2539.5,2539.4,8.38804971]
[1748289972398,2.36266981,2539.5,2539.4,8.85880102]
[1748289973427,2.36266981,2539.5,2539.4,8.38804971]
[1748289974629,2.36251318,2539.7,2539.4,8.38804971]
[1748289974790,2.36266981,2539.5,2539.4,8.38804971]
[1748289981338,2.36266981,2539.5,2539.4,8.85880102]
[1748289982039,0.8232,2540.1,2539.4,8.85880102]
[1748289982040,2.36246238,2539.8,2539.4,13.49057808]
[1748289982346,2.36225494,2540.0,2539.8,8.0]
[1748289982641,2.36220472,2540.0,2539.9,16.54078549]
[1748289984055,2.36213955,2540.1,2540.0,8.7512]
[1748289984358,2.36213955,2540.1,2540.0,0.7512]
[1748289985362,2.36213955,2540.1,2540.0,1.22248374]
[1748289986221,2.36201873,2540.2,2540.0,1.22248374]
[1748289986421,2.36211172,2540.1,2540.0,1.22248374]
[1748289986661,2.36211172,2540.1,2540.0,0.7512]
[1748289988118,2.36211172,2540.1,2540.0,1.22185217]
[1748289990538,2.36204267,2540.2,2540.0,1.22185217]
[1748289990732,2.36197405,2540.3,2540.1,20.47578549]
[1748289990938,0.81,2540.7,2540.1,20.47578549]
[1748289991146,2.36197808,2540.3,2540.1,11.935]
[1748289991352,2.36197808,2540.3,2540.2,8.54078549]
[1748289992271,2.36192575,2540.3,2540.2,8.54078549]
[1748289992473,2.36185303,2540.4,2540.2,16.54078549]
[1748289992677,2.36185303,2540.4,2540.3,8.0]
[1748289994962,2.82881757,2540.9,2540.5,8.0]
[1748289995165,0.46743488,2540.9,2540.8,16.54078549]
[1748289995369,2.36183278,2540.4,2540.3,17.33628549]
[1748289995678,2.36180082,2540.5,2540.3,25.57928549]
[1748289996068,2.36180082,2540.5,2540.4,12.1794447]
[1748289996472,2.36165178,2540.6,2540.4,12.1794447]
[1748289996473,2.36170099,2540.6,2540.4,12.65009687]
[1748289996643,2.36164732,2540.6,2540.4,12.65009687]
[1748289997018,0.1,2540.9,2540.5,8.8067]
[1748289997304,0.1,2540.9,2540.7,16.11529328]
[1748289997445,0.1,2540.9,2540.8,0.8067]
[1748289997949,0.1,2540.9,2540.8,21.24792801]
[1748289998809,0.1,2540.9,2540.8,17.71474162]
[1748289999313,0.1,2540.9,2540.8,18.18539379]
[1748290002022,0.1,2540.9,2540.8,17.71474162]
[1748290004423,0.1,2540.9,2540.8,21.65050988]
[1748290004624,2.3607,2541.7,2540.9,12.7596605]
[1748290004922,2.36075878,2541.6,2541.5,8.0]
[1748290006113,2.36066221,2541.7,2541.5,8.0]
[1748290006278,2.36071765,2541.6,2541.5,8.0]
[1748290008421,2.36099634,2541.3,2541.2,8.0]
[1748290019992,2.36099634,2541.3,2541.2,12.1775935]
[1748290023236,6.29365186,2541.7,2541.2,12.1775935]
[1748290023237,0.7864,2541.8,2541.2,16.1105935]
[1748290023458,3.1469319,2541.8,2541.7,4.1775935]
[1748290024128,2.36083216,2541.5,2541.3,4.64824567]
[1748290024445,3.19648939,2541.4,2541.3,0.47065217]
[1748290024749,3.74648939,2541.4,2541.3,0.47065217]
[1748290024914,4.11447426,2541.4,2541.3,0.47065217]
[1748290025093,5.80913602,2541.4,2541.3,0.47065217]
[1748290025837,5.80913602,2541.4,2540.5,12.1775935]
[1748290025838,2.36164685,2540.6,2540.5,12.1775935]
[1748290026635,2.36164685,2540.6,2540.5,4.1775935]
[1748290026796,2.36173981,2540.5,2540.4,0.47065217]
[1748290027197,2.36173981,2540.5,2540.2,0.47065217]
[1748290027198,2.36192575,2540.3,2540.2,0.47065217]
[1748290027393,2.36192575,2540.3,2540.2,8.47065217]
[1748290028035,2.31192575,2540.3,2540.2,8.47065217]
[1748290028625,2.31192575,2540.3,2540.2,8.0]
[1748290029137,2.36201873,2540.2,2540.1,8.51390426]
[1748290039768,2.36201873,2540.2,2539.6,1.22325217]
[1748290039769,2.36220472,2540.0,2539.6,1.22325217]
[1748290039954,2.36248375,2539.7,2539.6,0.47065217]
[1748290040135,2.41170569,2539.7,2539.6,0.47065217]
[1748290040336,2.36257678,2539.6,2539.5,8.0]
[1748290043586,2.36257678,2539.6,2539.5,8.4030957]
[1748290046082,2.36257678,2539.6,2539.5,8.0]
[1748290047595,2.36257678,2539.6,2539.5,8.38388735]
[1748290048082,2.36257678,2539.6,2539.5,12.56671274]
[1748290048304,2.36257678,2539.6,2539.2,5.0451]
[1748290048305,2.36276285,2539.4,2539.3,12.18282539]
[1748290048448,2.36276285,2539.4,2539.3,4.18282539]
[1748290048801,2.36276285,2539.4,2539.3,12.18282539]
[1748290049295,2.36276285,2539.4,2539.3,4.18282539]
[1748290053507,2.36276285,2539.4,2539.3,16.11782539]
[1748290053651,2.36276285,2539.4,2539.3,16.87162539]
[1748290053846,2.36272606,2539.5,2539.3,8.87162539]
[1748290054054,2.36272606,2539.5,2539.4,4.18282539]
[1748290054847,3.935,2540.2,2539.4,4.18282539]
[1748290054848,2.36236427,2539.9,2539.5,0.7538]
[1748290055089,0.7773,2540.4,2539.9,0.7538]
[1748290055291,2.36220472,2540.0,2539.9,8.7538]
[1748290055450,2.36191102,2540.4,2539.9,20.36091914]
[1748290055789,2.36191102,2540.4,2540.1,8.7876]
[1748290055984,2.36191102,2540.4,2540.3,8.0]
[1748290056408,2.36191102,2540.4,2540.3,12.18282539]
[1748290057810,2.36183278,2540.4,2540.3,12.18282539]
[1748290058008,2.36183278,2540.4,2540.3,16.51101783]
[1748290061087,2.36177999,2540.5,2540.3,16.51101783]
[1748290063895,2.36183278,2540.4,2540.3,16.51101783]
[1748290064601,2.36165437,2540.6,2540.3,17.34271783]
[1748290065345,2.36153484,2540.8,2540.3,21.27918079]
[1748290065622,2.36153484,2540.8,2540.7,8.51101783]
[1748290073716,2.36153484,2540.8,2540.7,8.90133061]
[1748290074617,2.36153484,2540.8,2540.7,0.39031278]
[1748290074871,2.36164685,2540.6,2540.5,8.0]
[1748290078155,2.36164685,2540.6,2540.5,12.56425623]
[1748290080985,3.17304685,2540.6,2540.5,12.56425623]
[1748290082880,2.36164685,2540.6,2540.5,12.56425623]
[1748290083088,2.36071765,2541.6,2540.5,12.56425623]
[1748290083264,2.36120187,2541.1,2540.8,4.17909471]
[1748290083459,2.36136801,2540.9,2540.8,4.17909471]
[1748290085494,2.72979853,2540.9,2540.8,4.17909471]
[1748290087516,0.36843052,2540.9,2540.8,12.93049471]
[1748290087668,0.36843052,2540.9,2540.8,16.86626297]
[1748290087872,0.36843052,2540.9,2540.8,12.93049471]
[1748290088281,2.36100004,2541.3,2540.8,16.86615582]
[1748290088520,2.36100004,2541.3,2541.2,0.7514]
[1748290090918,2.36108924,2541.2,2541.1,0.47044555]
[1748290092004,3.11598924,2541.2,2541.1,0.47044555]
[1748290092210,3.89978008,2541.2,2541.1,0.47044555]
[1748290092596,2.36136801,2540.9,2540.8,0.47044555]
[1748290093817,2.36146095,2540.8,2540.7,12.64954026]
[1748290095519,2.36131659,2541.0,2540.7,13.45774026]
[1748290095718,2.36099963,2541.3,2541.0,8.0]
[1748290095719,2.36124457,2541.1,2541.0,8.0]
[1748290096021,2.36124457,2541.1,2541.0,4.17909471]
[1748290096321,2.36124457,2541.1,2541.0,12.64954026]
[1748290096517,2.36072087,2541.6,2541.1,8.0]
[1748290096723,2.36112691,2541.2,2541.1,8.0]
[1748290097012,2.36112691,2541.2,2541.1,12.17909471]
[1748290097595,2.36112691,2541.2,2541.1,12.64954026]
[1748290098499,2.36112691,2541.2,2541.1,13.43734026]
[1748290100791,0.9172,2541.9,2541.1,17.37034026]
[1748290101043,2.46043904,2541.9,2541.8,4.17909471]
[1748290101334,0.1,2541.9,2541.8,4.17909471]
[1748290101501,0.1,2541.9,2541.8,12.96299471]
[1748290101840,0.1,2541.9,2541.8,17.29734352]
[1748290102203,0.1,2541.9,2541.8,13.36312368]
[1748290102818,0.1,2541.9,2541.8,20.72422368]
[1748290102819,2.46043904,2541.9,2541.8,20.72422368]
[1748290104642,0.1,2541.9,2541.8,21.50812368]
[1748290105734,0.1,2541.9,2541.8,21.97652054]
[1748290107500,0.1,2541.9,2541.8,21.50812368]
[1748290113958,2.46043904,2541.9,2541.8,8.40012897]
[1748290114115,2.46043904,2541.9,2541.8,4.57922368]
[1748290114443,2.46043904,2541.9,2541.8,12.57922368]
[1748290114832,0.1,2541.9,2541.8,12.57922368]
[1748290115037,2.46043904,2541.9,2541.8,12.57922368]
[1748290115419,0.1,2541.9,2541.8,12.57922368]
[1748290116625,0.1,2541.9,2541.8,13.39782368]
[1748290119460,0.1,2541.9,2541.8,13.86622054]
[1748290120873,0.1,2541.9,2541.8,13.04762054]
[1748290121075,0.1,2541.9,2541.8,16.97862054]
[1748290121378,2.46043904,2541.9,2541.8,16.97862054]
[1748290122964,0.1,2541.9,2541.8,16.97862054]
[1748290125070,0.1,2541.9,2541.8,21.66434038]
[1748290126969,0.1,2541.9,2541.8,21.19594352]
[1748290129270,2.35983284,2542.6,2542.2,8.7805]
[1748290129455,2.35983284,2542.6,2542.5,8.0]
[1748290130470,3.22745215,2542.9,2542.5,8.0]
[1748290130677,2.35974008,2542.7,2542.4,0.46902294]
[1748290130974,2.35974008,2542.7,2542.4,8.46902294]
[1748290131148,2.35965316,2542.8,2542.4,12.67002294]
[1748290131674,2.35971591,2542.7,2542.6,0.46902294]
[1748290131877,2.35961882,2542.8,2542.6,4.64811765]
[1748290132050,0.1,2542.9,2542.8,8.0]
[1748290132249,0.1,2542.9,2542.8,12.17909471]
[1748290133373,0.1,2542.9,2542.8,16.11176735]
[1748290134034,0.1,2542.9,2542.8,12.17909471]
[1748290135788,0.1,2542.9,2542.8,12.80445863]
[1748290137043,0.1,2542.9,2542.8,17.52445863]
[1748290138282,0.1,2542.9,2542.8,16.89909471]
[1748290139046,0.1,2542.9,2542.8,20.82909471]
[1748290142063,0.1,2542.9,2542.8,24.76176735]
[1748290142772,0.1,2542.9,2542.8,20.82909471]
[1748290144085,0.1,2542.9,2542.8,24.76176735]
[1748290145583,0.1,2542.9,2542.8,20.82909471]
[1748290146110,0.1,2542.9,2542.8,24.76176735]
[1748290146690,3.02573493,2543.4,2542.8,25.93713127]
[1748290146860,0.66666667,2543.4,2543.3,12.17909471]
[1748290147204,0.66666667,2543.4,2543.3,20.84859421]
[1748290148657,0.66666667,2543.4,2543.3,26.11859421]
[1748290148858,0.1,2543.9,2543.8,8.0]
[1748290149177,0.1,2543.9,2543.8,11.929]
[1748290149669,0.1,2543.9,2543.8,16.649]
[1748290151010,0.1,2543.9,2543.8,11.929]
[1748290151355,0.1,2543.9,2543.8,12.39713038]
[1748290153273,0.1,2543.9,2543.8,16.71157596]
[1748290153676,0.1,2543.9,2543.8,12.7804493]
[1748290154296,0.1,2543.9,2543.8,16.71157596]
[1748290154501,0.1,2543.9,2543.8,12.7804493]
[1748290154669,0.1,2543.9,2543.8,16.71157596]
[1748290154876,1.9786003,2544.8,2544.2,0.7651]
[1748290155208,1.9786003,2544.8,2544.7,12.17909471]
[1748290155501,1.9786003,2544.8,2544.7,16.10809471]
[1748290156068,0.1,2544.9,2544.7,16.10809471]
[1748290156069,0.1,2544.9,2544.7,20.73459204]
[1748290156270,1.9786003,2545.6,2544.9,0.7851]
[1748290156466,1.9786003,2545.6,2545.5,12.17909471]
[1748290156871,1.9786003,2545.6,2545.5,20.29509471]
[1748290157176,0.1,2545.9,2545.6,8.0]
[1748290157378,0.1,2545.9,2545.8,8.0]
[1748290157567,2.35690587,2545.8,2545.7,8.10709471]
[1748290157775,2.35690587,2545.8,2545.7,16.10709471]
[1748290158195,2.35690587,2545.8,2545.7,12.57744975]
[1748290158382,2.35690587,2545.8,2545.7,16.50544975]
[1748290158583,2.35710076,2545.5,2545.4,4.187]
[1748290158975,2.35719336,2545.4,2545.3,0.46813038]
[1748290159516,2.35719336,2545.4,2545.3,4.64722509]
[1748290159885,3.14359336,2545.4,2545.3,0.46813038]
[1748290160080,2.35748401,2545.1,2544.8,12.66735052]
[1748290160415,2.35793444,2544.6,2544.5,0.46813038]
[1748290161113,2.35802711,2544.5,2544.4,8.0]
[1748290161341,2.35796577,2544.6,2544.4,8.0]
[1748290161510,2.35811979,2544.4,2544.3,8.0]
[1748290161725,2.35830516,2544.2,2544.1,0.114]
[1748290161900,2.35821247,2544.3,2544.0,4.39513038]
[1748290161901,2.35839786,2544.1,2544.0,4.39513038]
[1748290162285,2.35839786,2544.1,2544.0,0.46813038]
[1748290162515,2.35849056,2544.0,2543.9,8.48135052]
[1748290162683,3.15736204,2544.4,2543.9,8.48135052]
[1748290162684,2.35824884,2544.3,2543.9,0.39271556]
[1748290162889,2.35876872,2543.7,2543.6,0.46813038]
[1748290163085,2.35849668,2544.0,2543.6,4.39513038]
[1748290163289,2.35849668,2544.0,2543.7,16.48135052]
[1748290163599,2.35868439,2543.8,2543.7,16.48135052]
[1748290163803,3.15788439,2543.8,2543.7,16.48135052]
[1748290164183,3.15788439,2543.8,2543.4,0.62536392]
[1748290164184,3.15790699,2543.8,2543.4,8.0]
[1748290164387,2.35884839,2543.7,2543.5,12.40835052]
[1748290164595,3.15790886,2543.8,2543.6,8.0]
[1748290164787,3.15790886,2543.8,2543.6,8.39954472]
[1748290165191,0.7992,2544.1,2543.6,8.0]
[1748290165525,2.35850338,2544.0,2543.9,8.0]
[1748290169933,2.35850338,2544.0,2543.7,3.928]
[1748290170135,2.35867599,2543.8,2543.6,12.3229136]
[1748290170447,2.35876872,2543.7,2543.6,8.3949136]
[1748290170740,3.11096872,2543.7,2543.6,0.3949136]
[1748290171033,2.35886145,2543.6,2543.5,8.0]
[1748290171239,2.3591397,2543.3,2543.2,16.9494809]
[1748290171441,2.3591397,2543.3,2543.2,0.85419481]
[1748290171613,2.3591397,2543.3,2543.2,0.38606443]
[1748290171818,2.3591397,2543.3,2543.2,8.0]
[1748290173045,2.3590507,2543.4,2543.2,8.0]
[1748290173215,2.3591397,2543.3,2543.2,8.0]
[1748290175131,2.3591397,2543.3,2543.2,8.39100657]
[1748290175498,2.35908584,2543.4,2543.2,8.39100657]
[1748290175916,2.3591397,2543.3,2543.2,8.39100657]
[1748290177704,2.3590607,2543.4,2543.2,8.39100657]
[1748290177705,2.35909574,2543.4,2543.2,8.39100657]
[1748290177905,2.35858327,2543.9,2543.2,8.39100657]
[1748290178106,0.759,2544.0,2543.8,8.48135052]
[1748290178420,2.35858327,2543.9,2543.8,8.48135052]
[1748290183954,2.35858327,2543.9,2543.8,16.48135052]
[1748290187459,2.35858327,2543.9,2543.8,20.40935052]
[1748290187955,3.17708327,2543.9,2543.8,8.0]
[1748290188132,3.7797803,2543.9,2543.8,8.0]
[1748290188332,2.35895419,2543.5,2543.4,13.1834809]
[1748290188522,2.35895419,2543.5,2543.4,25.1114809]
[1748290189348,2.35895419,2543.5,2543.4,24.64335052]
[1748290190760,2.35895419,2543.5,2543.4,25.1114809]
[1748290192463,2.35895419,2543.5,2543.4,25.1124809]
[1748290192651,2.35895419,2543.5,2543.4,24.64435052]
[1748290192862,3.13345419,2543.5,2543.4,8.0]
[1748290196556,3.13345419,2543.5,2543.4,8.46999964]
[1748290197977,3.13345419,2543.5,2543.4,12.64014034]
[1748290198666,2.358698,2543.8,2543.5,8.0]
[1748290198667,2.35885042,2543.7,2543.5,8.0]
[1748290198832,2.35885042,2543.7,2543.6,4.1701407]
[1748290200579,2.35885042,2543.7,2543.6,4.64023206]
[1748290201067,2.35874712,2543.8,2543.6,12.64023206]
[1748290201271,2.35876872,2543.7,2543.6,12.64023206]
[1748290201960,2.35876872,2543.7,2543.6,8.47009136]
[1748290203189,2.35868566,2543.8,2543.6,8.0]
[1748290203383,2.35854442,2544.0,2543.8,0.8294]
[1748290203546,2.35854442,2544.0,2543.9,16.48961497]
[1748290204398,0.805,2544.5,2544.0,8.0]
[1748290204547,2.35831017,2544.2,2543.8,9.45476392]
[1748290204741,2.35831017,2544.2,2544.1,16.48961497]
[1748290206663,2.35831017,2544.2,2544.1,16.95922808]
[1748290208793,0.7536,2544.8,2544.2,8.8142]
[1748290209100,2.35808835,2544.5,2544.4,16.48961497]
[1748290210233,2.35808835,2544.5,2544.4,8.0]
[1748290210368,3.11168835,2544.5,2544.4,8.0]
[1748290211005,3.52591632,2544.7,2544.5,8.0]
[1748290211165,0.36699341,2544.7,2544.5,8.0]
[1748290211372,0.36699341,2544.7,2544.5,8.39353315]
[1748290211699,2.35784034,2544.8,2544.5,8.39353315]
[1748290212210,0.801,2545.1,2544.5,8.39353315]
[1748290212352,2.35792184,2544.7,2544.5,8.39353315]
[1748290212553,2.35792184,2544.7,2544.5,8.86247075]
[1748290212749,2.35779854,2544.8,2544.5,8.86247075]
[1748290212969,2.35784748,2544.7,2544.5,8.86247075]
[1748290213408,2.35793444,2544.6,2544.5,8.86247075]
[1748290213558,2.35793444,2544.6,2544.5,0.86247075]
[1748290214693,2.35793444,2544.6,2544.5,0.39353315]
[1748290214899,7.0600292,2545.2,2544.4,1.2549376]
[1748290215219,2.35774913,2544.8,2544.7,8.48961497]
[1748290215388,0.7746,2545.2,2544.8,8.0]
[1748290215569,2.35770917,2544.9,2544.7,16.48961497]
[1748290215755,2.35761423,2545.0,2544.8,8.0]
[1748290215949,2.35771042,2544.9,2544.8,8.0]
[1748290216501,1.18361913,2545.6,2544.9,0.7906]
[1748290216692,2.35736997,2545.3,2545.1,8.48961497]
[1748290217049,2.35737859,2545.2,2545.1,8.48961497]
[1748290217289,2.35737859,2545.2,2545.1,16.48961497]
[1748290217691,2.35737859,2545.2,2545.1,16.88678939]
[1748290220012,2.35732997,2545.3,2545.2,8.0]
[1748290222120,2.35732997,2545.3,2545.2,12.16351547]
[1748290224844,2.35723152,2545.4,2545.2,12.16351547]
[1748290225190,2.35718378,2545.5,2545.3,0.8164]
[1748290225404,2.35718378,2545.5,2545.4,12.16351547]
[1748290230569,2.35718378,2545.5,2545.2,4.16351547]
[1748290230859,2.35737859,2545.2,2545.1,0.39717442]
[1748290231026,2.35747121,2545.1,2545.0,8.0]
[1748290231459,2.35747121,2545.1,2545.0,12.16351547]
[1748290231642,2.35723002,2545.4,2545.1,0.7789]
[1748290231849,0.9239,2545.9,2545.3,12.16351547]
[1748290232153,2.35691558,2545.7,2545.6,4.16351547]
[1748290232316,2.35710076,2545.5,2545.4,4.16351547]
[1748290232931,0.9239,2545.9,2545.4,12.16351547]
[1748290233107,2.35689188,2545.8,2545.7,4.16351547]
[1748290233308,2.45680624,2545.9,2545.7,4.16351547]
[1748290233508,0.1,2545.9,2545.8,8.0]
[1748290234628,2.45673042,2545.9,2545.8,8.0]
[1748290235150,0.1,2545.9,2545.8,8.0]
[1748290235757,2.45673042,2545.9,2545.8,8.0]
[1748290235965,2.356823,2545.8,2545.7,0.4689376]
[1748290236162,2.35691558,2545.7,2545.6,4.63245307]
[1748290236466,2.35691558,2545.7,2545.6,0.4689376]
[1748290237226,2.35710076,2545.5,2545.3,12.16351547]
[1748290237432,2.35719336,2545.4,2545.3,12.16351547]
[1748290237679,2.35719336,2545.4,2545.3,4.16351547]
[1748290237895,2.35737859,2545.2,2545.1,12.78742162]
[1748290238046,2.35737859,2545.2,2545.1,16.95093709]
[1748290238432,2.35729421,2545.3,2545.1,16.95093709]
[1748290238633,2.35720958,2545.4,2545.1,16.95093709]
[1748290238883,2.35720958,2545.4,2545.3,12.16351547]
[1748290239241,2.3571484,2545.5,2545.4,8.0]
[1748290239447,2.3571484,2545.5,2545.4,12.16351547]
[1748290247679,2.3571484,2545.5,2545.4,12.63245307]
[1748290248459,0.1,2545.9,2545.4,20.72196854]
[1748290248766,2.3569446,2545.7,2545.4,12.3949376]
[1748290249077,2.35700817,2545.6,2545.5,0.4689376]
[1748290249797,2.35700817,2545.6,2545.5,12.63245307]
[1748290249947,2.3569375,2545.7,2545.6,8.0]
[1748290250150,2.35687839,2545.8,2545.6,12.16351547]
[1748290250463,2.35691558,2545.7,2545.6,12.16351547]
[1748290251157,2.35691558,2545.7,2545.6,12.63195845]
[1748290251476,2.45676851,2545.9,2545.6,12.63195845]
[1748290251477,2.45678991,2545.9,2545.6,12.63195845]
[1748290251686,2.35691558,2545.7,2545.6,12.63195845]
[1748290252598,0.1,2545.9,2545.6,12.63195845]
[1748290252890,2.35691558,2545.7,2545.6,12.63195845]
[1748290253665,2.35691558,2545.7,2545.6,8.46844298]
[1748290253867,2.35691558,2545.7,2545.6,4.63195845]
[1748290254588,2.356823,2545.8,2545.6,4.63195845]
[1748290254589,2.35686593,2545.8,2545.6,4.63195845]
[1748290254886,2.35687527,2545.8,2545.6,4.63195845]
[1748290256071,2.35687527,2545.8,2545.7,0.46844298]
[1748290256450,2.35687527,2545.8,2545.7,12.63195845]
[1748290257660,2.30687527,2545.8,2545.7,12.63195845]
[1748290258804,3.07027527,2545.8,2545.7,0.46844298]
[1748290258947,3.62297884,2545.8,2545.7,0.46844298]
[1748290259607,2.35700817,2545.6,2545.5,16.88351547]
[1748290260999,2.35700817,2545.6,2545.5,4.72]
[1748290261213,2.35710076,2545.5,2545.4,12.63195845]
[1748290261683,3.12050076,2545.5,2545.4,0.46844298]
[1748290261884,3.12059336,2545.4,2545.3,0.46844298]
[1748290262110,3.16971242,2545.4,2545.3,0.46844298]